fUST/lending_fUST_20260101
["ID","MTS","AMOUNT","RATE_DAILY","PERIOD"]
[400281047,1767256240917,-796.7,0.00019178,2]
[400281048,1767256240927,-796.7,0.00019178,2]
[400281049,1767256240937,-796.7,0.00019178,2]
[400281050,1767256240945,-796.7,0.00019178,2]
[400281051,1767256240954,-796.7,0.00019178,2]
[400281052,1767256240963,-796.7,0.00019178,2]
[400281053,1767256240972,-796.7,0.00019178,2]
[400281054,1767256240981,-796.7,0.00019178,2]
[400281055,1767256240990,-796.7,0.00019178,2]
[400281056,1767256240999,-796.7,0.00019178,2]
[400281057,1767256241008,-796.7,0.00019178,2]
[400281058,1767256241018,-796.7,0.00019178,2]
[400281059,1767256241027,-796.7,0.00019178,2]
[400281060,1767256241036,-796.7,0.00019178,2]
[400281061,1767256241045,-796.90033187,0.00019178,2]
[400281062,1767256241054,-241.94,0.000192,2]
[400281063,1767256241064,-166.35,0.000192,2]
[400281064,1767256241073,-6358.14,0.000192,2]
[400281065,1767256241082,-1440.11,0.00019404,2]
[400281066,1767256241091,-525.93187343,0.00019789,2]
[400281067,1767256241100,-2000.0,0.00019953,7]
[400281068,1767256241110,-4086.50321384,0.0002,2]
[400281069,1767256241119,-601.57710056,0.0002,2]
[400281070,1767256241130,-10519.63400987,0.0002,2]
[400281071,1767256241139,-71611.0,0.0002,2]
[400281072,1767256241148,-159.78376213,0.0002,2]
[400281073,1767256241158,-421.09067682,0.0002013,2]
[400281074,1767256241167,-1051.467318,0.00020187,2]
[400281075,1767256241177,-250.0,0.00020205,2]
[400281076,1767256241186,-250.0,0.00020205,2]
[400281077,1767256241196,-250.0,0.00020205,2]
[400281078,1767256241205,-250.0,0.00020205,2]
[400281079,1767256241215,-250.0,0.00020205,2]
[400281080,1767256241225,-250.0,0.00020205,2]
[400281081,1767256241235,-250.0,0.00020205,2]
[400281082,1767256241244,-250.0,0.00020205,2]
[400281083,1767256241254,-250.0,0.00020205,2]
[400281084,1767256241263,-250.0,0.00020205,2]
[400281085,1767256241273,-250.0,0.00020205,2]
[400281086,1767256241282,-250.0,0.00020205,2]
[400281087,1767256241292,-30000.0,0.00020205,2]
[400281088,1767256241301,-186.2,0.00020333,2]
[400281089,1767256241311,-1645.84,0.00020545,2]
[400281090,1767256241323,-1387.29851785,0.0002061,2]
[400281091,1767256241333,-7288.75431895,0.00020753,2]
[400281092,1767256241343,-256.05139749,0.000209,2]
[400281093,1767256241352,-276.92757595,0.00021,2]
[400281094,1767256241361,-19969.80281378,0.00021,2]
[400281095,1767256241371,-1405.13599888,0.00021145,2]
[400281096,1767256241380,-1038.36333157,0.000215,2]
[400281097,1767256241390,-12840.41586562,0.000215,2]
[400281098,1767256241400,-1851.57,0.00021687,2]
[400281099,1767256241414,-575.75699828,0.00021789,2]
[400281100,1767256241423,-182.56718446,0.00021836,5]
[400281101,1767256241434,-181.42065609,0.00022061,2]
[400281102,1767256241444,-378.13800268,0.00022086,2]
[400281103,1767256241453,-186.2,0.00022219,2]
[400281104,1767256241462,-1031.90217382,0.000225,2]
[400281105,1767256241472,-2057.3,0.00022828,2]
[400281106,1767256241481,-671.01,0.000231,7]
[400281107,1767256241492,-154.69,0.000231,7]
[400281108,1767256241502,-1384.5057019,0.00023145,2]
[400281109,1767256241511,-160.13,0.000232,2]
[400281110,1767256241520,-6358.14,0.000232,2]
[400281111,1767256241530,-3239.83581211,0.0002378,2]
[400281112,1767256241540,-625.58212313,0.00023789,2]
[400281113,1767256241549,-35714.28,0.000239,3]
[400281114,1767256241559,-2000.0,0.00023963,7]
[400281115,1767256241569,-186.2,0.00024106,2]
[400281116,1767256241578,-11901.17774474,0.00024142,2]
[400281117,1767256241775,-3e-08,0.00024142,2]
[400281240,1767256246210,-3095.50546303,0.00024142,2]
[400281388,1767256289722,418.69202002,0.0001,10]
[400281389,1767256289749,1000.0,0.0001,10]
[400281390,1767256289775,581.30797998,0.0001,10]
[400281391,1767256316274,-151.3,9.456e-05,2]
[400281392,1767256331514,-208.15517939,9.504e-05,2]
[400281393,1767256346841,-269.1621158,9.552e-05,2]
[400281394,1767256346871,-500.0,9.552e-05,2]
[400281395,1767256346907,-500.0,9.552e-05,2]
[400281396,1767256346939,-500.0,9.552e-05,2]
[400281397,1767256346972,-500.0,9.552e-05,2]
[400281398,1767256347003,-500.0,9.552e-05,2]
[400281399,1767256347040,-500.0,9.552e-05,2]
[400281400,1767256347075,-500.0,9.552e-05,2]
[400281401,1767256347107,-500.0,9.552e-05,2]
[400281402,1767256347139,-500.0,9.552e-05,2]
[400281403,1767256347357,-500.0,9.552e-05,2]
[400281404,1767256347390,-500.0,9.552e-05,2]
[400281405,1767256347423,-500.0,9.552e-05,2]
[400281406,1767256347454,-500.0,9.552e-05,2]
[400281407,1767256347484,-368.18401719,9.552e-05,2]
[400281408,1767256347514,-220.4960302,9.552e-05,2]
[400281409,1767256347546,-500.0,9.552e-05,2]
[400281410,1767256347575,-500.0,9.552e-05,2]
[400281411,1767256347604,-500.0,9.552e-05,2]
[400281412,1767256347635,-500.0,9.552e-05,2]
[400281413,1767256347667,-322.64990522,9.552e-05,2]
[400281414,1767256347701,-177.35009478,9.552e-05,2]
[400281415,1767256347731,-373.4545958,9.552e-05,2]
[400281416,1767256347765,-500.0,9.552e-05,2]
[400281417,1767256347797,-500.0,9.552e-05,2]
[400281418,1767256347830,-500.0,9.552e-05,2]
[400281419,1767256347860,-500.0,9.552e-05,2]
[400281420,1767256347891,-500.0,9.552e-05,2]
[400281421,1767256347921,-500.0,9.552e-05,2]
[400281422,1767256347950,-169.81354738,9.552e-05,2]
[400281423,1767256347981,-500.0,9.552e-05,2]
[400281424,1767256348015,-500.0,9.552e-05,2]
[400281425,1767256348047,-58.77352408,9.552e-05,2]
[400281426,1767256348173,-441.22647592,9.552e-05,2]
[400281427,1767256348208,-500.0,9.552e-05,2]
[400281428,1767256348346,-500.0,9.552e-05,2]
[400281429,1767256348379,-500.0,9.552e-05,2]
[400281430,1767256348411,-500.0,9.552e-05,2]
[400281431,1767256348444,-500.0,9.552e-05,2]
[400281432,1767256348477,-500.0,9.552e-05,2]
[400281433,1767256348509,-500.0,9.552e-05,2]
[400281434,1767256348543,-500.0,9.552e-05,2]
[400281435,1767256348577,-404.80950018,9.552e-05,2]
[400281436,1767256348683,-500.0,9.552e-05,2]
[400281437,1767256348716,-500.0,9.552e-05,2]
[400281438,1767256348752,-500.0,9.552e-05,2]
[400281439,1767256348783,-461.47820085,9.552e-05,2]
[400281440,1767256348818,-500.0,9.552e-05,2]
[400281441,1767256348852,-500.0,9.552e-05,2]
[400281442,1767256348884,-300.0,9.552e-05,2]
[400281443,1767256372336,10000.01,9.553e-05,2]
[400281444,1767256372367,10000.01,9.553e-05,2]
[400281445,1767256372398,10000.01,9.553e-05,2]
[400281446,1767256372427,10000.01,9.553e-05,2]
[400281447,1767256372455,10000.01,9.553e-05,2]
[400281448,1767256372486,10000.01,9.553e-05,2]
[400281449,1767256372517,10000.01,9.553e-05,2]
[400281450,1767256372545,10000.01,9.553e-05,2]
[400281451,1767256372579,10000.01,9.553e-05,2]
[400281452,1767256372607,10000.01,9.553e-05,2]
[400281454,1767256384154,-1390.29521031,9.553e-05,2]
[400281455,1767256384268,-10000.01,9.553e-05,2]
[400281456,1767256384498,-10000.01,9.553e-05,2]
[400281457,1767256386903,-10000.01,9.553e-05,2]
[400281458,1767256387002,-10000.01,9.553e-05,2]
[400281459,1767256387111,-10000.01,9.553e-05,2]
[400281460,1767256482391,-500.0,9.552e-05,2]
[400281461,1767256482421,-188.41348106,9.552e-05,2]
[400281462,1767256482450,-500.0,9.552e-05,2]
[400281463,1767256482480,-500.0,9.552e-05,2]
[400281464,1767256482508,-500.0,9.552e-05,2]
[400281465,1767256482537,-500.0,9.552e-05,2]
[400281466,1767256482568,-590.76355263,9.552e-05,2]
[400281467,1767256482597,-500.0,9.552e-05,2]
[400281468,1767256482627,-500.0,9.552e-05,2]
[400281469,1767256482656,-500.0,9.552e-05,2]
[400281470,1767256482686,-11.27208864,9.552e-05,2]
[400281471,1767256482825,-419.11175534,9.552e-05,2]
[400281472,1767256482855,-500.0,9.552e-05,2]
[400281473,1767256482884,-296.64594971,9.552e-05,2]
[400281474,1767256482913,-213.75032343,9.552e-05,2]
[400281475,1767256498641,-300.0,9.552e-05,2]
[400281476,1767256501244,300.0,9.552e-05,2]
[400281477,1767256501934,300.0,9.552e-05,2]
[400281478,1767256502003,300.0,9.552e-05,2]
[400281479,1767256502101,300.0,9.552e-05,2]
[400281480,1767256502243,479.0,9.552e-05,2]
[400281481,1767256514213,-8321.01,9.553e-05,2]
[400281482,1767256514288,-10000.01,9.553e-05,2]
[400281483,1767256514428,-10000.01,9.553e-05,2]
[400281484,1767256514566,-10000.01,9.553e-05,2]
[400281485,1767256514695,-10000.01,9.553e-05,2]
[400281486,1767256514858,-10000.01,9.553e-05,2]
[400281487,1767256514977,-10000.01,9.553e-05,2]
[400281488,1767256681109,168.15,5.994e-05,2]
[400281489,1767256681389,168.15,5.994e-05,2]
[400281490,1767256681647,168.16,5.994e-05,2]
[400281491,1767256708906,5000.0,9.327e-05,2]
[400281493,1767256732546,4495.55,9.327e-05,2]
[400281494,1767256732570,504.45,9.327e-05,2]
[400281495,1767256757391,5000.0,9.327e-05,2]
[400281496,1767256836764,611.62744697,0.00028767,120]
[400281497,1767256916389,-183.62270644,9.362e-05,2]
[400281498,1767256916411,-276.18314559,9.362e-05,2]
[400281499,1767256916433,-33.50099981,9.362e-05,2]
[400281500,1767256919368,-173.31490018,9.362e-05,2]
[400281501,1767256941605,627.55236197,9.327e-05,2]
[400281502,1767256953014,3868.00763803,9.038e-05,2]
[400281503,1767256953036,10000.01,9.038e-05,2]
[400281504,1767256953059,10000.01,9.038e-05,2]
[400281505,1767256955401,-158.91724763,9.038e-05,2]
[400281506,1767256956698,-237.08053768,9.038e-05,2]
[400281507,1767256958251,-500.0,9.038e-05,2]
[400281508,1767256959651,-217.442454,9.038e-05,2]
[400281509,1767256961231,-271.74674311,9.038e-05,2]
[400281510,1767256964093,-291.74497095,9.038e-05,2]
[400281511,1767256966225,-389.37666352,8.948e-05,2]
[400281512,1767256969579,-300.0,8.948e-05,2]
[400281513,1767256971014,-582.33075621,8.948e-05,2]
[400281514,1767256972583,-113.47626245,8.948e-05,2]
[400281515,1767256972606,-205.10608061,9.038e-05,2]
[400281516,1767256974189,-360.92865171,9.038e-05,2]
[400281517,1767256976176,-415.29783788,9.038e-05,2]
[400281518,1767256978406,-207.30691018,9.038e-05,2]
[400281519,1767256980635,-766.9347939,9.038e-05,2]
[400281520,1767256983218,-169.33706153,9.038e-05,2]
[400281521,1767256985947,-194.96628636,9.038e-05,2]
[400281522,1767256987866,2242.96338545,9.028e-05,2]
[400281523,1767256989467,-200.52,9.038e-05,2]
[400281524,1767256992655,-160.77133971,9.038e-05,2]
[400281525,1767256995418,-177.02289171,9.038e-05,2]
[400281526,1767256996867,-583.0,9.038e-05,2]
[400281527,1767256998497,-1218.74160507,9.038e-05,2]
[400281528,1767257001437,-155.43,9.038e-05,2]
[400281529,1767257004251,-169.20118282,9.038e-05,2]
[400281530,1767257006350,-226.5,9.038e-05,2]
[400281531,1767257007915,-300.0,9.038e-05,2]
[400281532,1767257011178,-161.82813265,9.038e-05,2]
[400281533,1767257012709,-1306.47729525,9.038e-05,2]
[400281534,1767257014267,-242.77979819,9.038e-05,2]
[400281535,1767257017828,-260.33866029,9.038e-05,2]
[400281536,1767257022208,-151.58141478,9.038e-05,2]
[400281537,1767257024878,-377.68601388,9.038e-05,2]
[400281538,1767257026431,-168.58578342,9.038e-05,2]
[400281539,1767257029715,-190.95421658,9.038e-05,2]
[400281540,1767257031735,-190.46,9.038e-05,2]
[400281541,1767257248107,-300.0,9.037e-05,2]
[400281542,1767257248127,-300.0,9.037e-05,2]
[400281543,1767257248147,-300.0,9.037e-05,2]
[400281544,1767257248168,-97.69067532,9.037e-05,2]
[400281545,1767257348083,-300.0,9.037e-05,2]
[400281546,1767257348105,-270.65948267,9.038e-05,2]
[400281547,1767257348278,-6031.78345674,9.038e-05,2]
[400281548,1767257352640,-161.04897507,9.038e-05,2]
[400281573,1767257431781,-256.0,9.037e-05,2]
[400281575,1767257431791,-300.0,9.037e-05,2]
[400281577,1767257431800,-300.0,9.037e-05,2]
[400281578,1767257431810,-300.0,9.037e-05,2]
[400281579,1767257431819,-547.0,9.037e-05,2]
[400281580,1767257431829,-28151.49455157,9.038e-05,2]
[400281581,1767257431838,-62.45610001,9.362e-05,2]
[400281582,1767257431847,-1475.90895359,9.552e-05,2]
[400281583,1767257431859,-501.11103082,9.552e-05,2]
[400281585,1767257431869,-1123.02642622,9.552e-05,2]
[400281588,1767257431894,-470.11120531,9.552e-05,2]
[400281589,1767257431905,-46429.84238406,9.552e-05,2]
[400281590,1767257431914,-1640.97750504,9.941e-05,2]
[400281591,1767257431922,-420.0,9.941e-05,2]
[400281593,1767257431932,-500.0,9.999e-05,2]
[400281595,1767257431941,-424.37484039,9.999e-05,2]
[400281604,1767257437852,-75.62515961,9.999e-05,2]
[400281605,1767257437861,-500.0,9.999e-05,2]
[400281606,1767257437870,-213.53448684,9.999e-05,2]
[400281607,1767257437879,-500.0,9.999e-05,2]
[400281608,1767257437889,-500.0,9.999e-05,2]
[400281609,1767257437898,-500.0,9.999e-05,2]
[400281610,1767257437907,-1441.19,0.0001,2]
[400281611,1767257437916,-3046.64672844,0.0001,2]
[400281612,1767257437925,-151.0,0.0001,2]
[400281613,1767257437934,-151.0,0.0001,2]
[400281614,1767257437943,-153.83071478,0.0001,2]
[400281615,1767257437952,-184.03675397,0.0001,2]
[400281616,1767257437961,-1441.19,0.000102,2]
[400281617,1767257437971,-1441.19,0.000104,2]
[400281618,1767257437980,-5428.53566989,0.00010473,2]
[400281619,1767257437989,-1441.19,0.000106,2]
[400281620,1767257437998,-1441.19,0.000108,2]
[400281621,1767257438007,-587.0,0.00010935,2]
[400281622,1767257438017,-500.0,0.00010959,2]
[400281623,1767257438026,-500.0,0.00010959,2]
[400281624,1767257438035,-518.25793294,0.00010959,2]
[400281625,1767257438044,-500.0,0.00010959,2]
[400281626,1767257438053,-500.0,0.00010959,2]
[400281627,1767257438062,-500.0,0.00010959,2]
[400281628,1767257438072,-500.0,0.00010959,2]
[400281629,1767257438081,-500.0,0.00010959,2]
[400281630,1767257438090,-500.0,0.00010959,2]
[400281631,1767257438099,-500.0,0.00010959,2]
[400281632,1767257438108,-500.0,0.00010959,2]
[400281633,1767257438118,-600.20462745,0.00010986,2]
[400281634,1767257438127,-1441.19,0.00011,2]
[400281635,1767257438136,-319.37818956,0.00011038,2]
[400281636,1767257438146,-250.0,0.00011942,2]
[400281637,1767257438155,-239.83581311,0.00012,2]
[400281638,1767257438164,-823.0,0.00012029,2]
[400281639,1767257438173,-600.20462745,0.00012043,2]
[400281640,1767257438183,-1761.34,0.00012329,2]
[400281641,1767257438192,-1467.78,0.00012329,2]
[400281642,1767257438201,-1223.15,0.00012329,2]
[400281643,1767257438211,-1019.29,0.00012329,2]
[400281644,1767257438220,-849.41,0.00012329,2]
[400281645,1767257438230,-707.84,0.00012329,2]
[400281646,1767257438239,-589.87,0.00012329,2]
[400281647,1767257438249,-491.56,0.00012329,2]
[400281648,1767257438259,-409.63,0.00012329,2]
[400281649,1767257438268,-341.36,0.00012329,2]
[400281650,1767257438278,-284.46,0.00012329,2]
[400281651,1767257438287,-500.0,0.00012329,2]
[400281652,1767257438297,-237.05,0.00012329,2]
[400281653,1767257438306,-197.55,0.00012329,2]
[400281654,1767257438316,-164.62,0.00012329,2]
[400281655,1767257438325,-823.13,0.00012329,2]
[400281656,1767257438335,-205.73,0.00012531,2]
[400281657,1767257438344,-150.0,0.00012552,2]
[400281658,1767257438354,-150.0,0.00012552,2]
[400281659,1767257438363,-500.0,0.00012603,2]
[400281660,1767257438372,-150.0,0.00012689,2]
[400281661,1767257438382,-150.0,0.00012689,2]
[400281662,1767257438392,-150.0,0.00012826,2]
[400281663,1767257438402,-150.0,0.00012826,2]
[400281664,1767257438411,-500.0,0.00012877,2]
[400281665,1767257438422,-151.0,0.000129,2]
[400281666,1767257438431,-150.0,0.00012963,2]
[400281667,1767257438441,-250.0,0.00012963,2]
[400281668,1767257438450,-500.0,0.00012999,2]
[400281669,1767257438459,-150.0,0.00012999,2]
[400281670,1767257438471,-500.0,0.00012999,2]
[400281671,1767257438480,-150.0,0.00012999,2]
[400281672,1767257438489,-160.94726979,0.00012999,2]
[400281673,1767257438499,-500.0,0.00013,2]
[400281674,1767257438508,-600.2,0.00013,2]
[400281675,1767257438517,-192.28,0.00013,2]
[400281676,1767257438526,-192.28,0.00013,2]
[400281677,1767257438536,-192.28,0.00013,2]
[400281678,1767257438545,-368.09689644,0.00013038,2]
[400281679,1767257438554,-150.0,0.000131,2]
[400281680,1767257438563,-600.20462745,0.000131,2]
[400281681,1767257438573,-299.999999,0.00013136,2]
[400281682,1767257438582,-501.75567666,0.00013136,2]
[400281683,1767257438591,-150.0,0.00013136,2]
[400281684,1767257438600,-422.0,0.00013231,2]
[400281685,1767257438609,-250.0,0.00013237,2]
[400281686,1767257438619,-500.0,0.00013273,2]
[400281687,1767257438628,-500.0,0.00013273,2]
[400281688,1767257438637,-500.0,0.00013273,2]
[400281689,1767257438647,-497.57485249,0.00013273,2]
[400281690,1767257438656,-510.90139551,0.00013273,2]
[400281691,1767257438665,-500.0,0.00013273,2]
[400281692,1767257438675,-500.0,0.00013273,2]
[400281693,1767257438684,-500.0,0.00013273,2]
[400281694,1767257438694,-150.19564112,0.00013273,2]
[400281695,1767257438703,-500.17111181,0.00013273,2]
[400281696,1767257438712,-500.0,0.00013273,2]
[400281697,1767257438722,-500.0,0.00013273,2]
[400281698,1767257438731,-517.42097364,0.00013273,2]
[400281699,1767257438740,-500.0,0.00013273,2]
[400281700,1767257438749,-500.0,0.00013273,2]
[400281701,1767257438759,-500.24232759,0.00013273,2]
[400281702,1767257438767,-500.0,0.00013273,2]
[400281703,1767257438777,-501.05066348,0.00013273,2]
[400281704,1767257438786,-581.36035181,0.00013273,2]
[400281705,1767257438907,-500.18467104,0.00013273,2]
[400281706,1767257438918,-638.64633295,0.00013273,2]
[400281707,1767257438928,-236.76731322,0.00013273,2]
[400281708,1767257438937,-500.0,0.00013273,2]
[400281709,1767257438946,-500.0,0.00013273,2]
[400281710,1767257438956,-646.41067547,0.00013273,2]
[400281711,1767257438965,-500.0,0.00013273,2]
[400281712,1767257438975,-500.0,0.00013273,2]
[400281713,1767257438985,-386.16342293,0.00013273,2]
[400281714,1767257438995,-500.0,0.00013273,2]
[400281715,1767257439005,-500.0,0.00013273,2]
[400281716,1767257439016,-500.0,0.00013273,2]
[400281717,1767257439025,-540.69279956,0.00013273,2]
[400281718,1767257439035,-418.41125218,0.00013273,2]
[400281719,1767257439045,-450.26227438,0.00013273,2]
[400281720,1767257439054,-278.08591794,0.00013273,2]
[400281721,1767257439063,-500.0,0.00013273,2]
[400281722,1767257439073,-150.0,0.00013273,2]
[400281723,1767257439083,-205.67447394,0.00013273,2]
[400281724,1767257439093,-151.0,0.000133,2]
[400281725,1767257439103,-150.0,0.0001341,2]
[400281726,1767257439112,-150.0,0.00013547,2]
[400281727,1767257439122,-151.0,0.000136,2]
[400281728,1767257439132,-411.46,0.0001367,2]
[400281729,1767257439142,-300.0,0.00013673,2]
[400281730,1767257439153,-250.0,0.00013684,2]
[400281731,1767257439163,-1682.55469545,0.00013696,2]
[400281732,1767257439172,-634.29682706,0.00013698,2]
[400281733,1767257439182,-500.0,0.00013698,2]
[400281734,1767257439191,-500.0,0.00013698,2]
[400281735,1767257439200,-500.0,0.00013698,2]
[400281736,1767257439210,-500.0,0.00013698,2]
[400281737,1767257439219,-500.0,0.00013698,2]
[400281738,1767257439229,-500.0,0.00013698,2]
[400281739,1767257439239,-294.49990003,0.00013698,2]
[400281740,1767257439249,-582.30404194,0.00013698,2]
[400281741,1767257439259,-500.0,0.00013698,2]
[400281742,1767257439268,-500.0,0.00013698,2]
[400281743,1767257439278,-500.0,0.00013698,2]
[400281744,1767257439287,-500.0,0.00013698,2]
[400281745,1767257439297,-501.34554409,0.00013698,2]
[400281746,1767257439306,-500.0,0.00013698,2]
[400281747,1767257439316,-500.0,0.00013698,2]
[400281748,1767257439326,-530.23109502,0.00013698,2]
[400281749,1767257439335,-15492.5924877,0.00013699,2]
[400281750,1767257439346,-500.0,0.00013699,2]
[400281751,1767257439356,-500.87963329,0.00013699,2]
[400281752,1767257439366,-500.0,0.00013699,2]
[400281753,1767257439375,-501.57657617,0.00013699,2]
[400281754,1767257439385,-501.33800671,0.00013699,2]
[400281755,1767257439394,-500.0,0.00013699,2]
[400281756,1767257439404,-500.0,0.00013699,2]
[400281757,1767257439413,-502.49804359,0.00013699,2]
[400281758,1767257439422,-500.0,0.00013699,2]
[400281759,1767257439432,-504.76855077,0.00013699,2]
[400281760,1767257439442,-500.0,0.00013699,2]
[400281761,1767257439452,-150.0,0.00013699,2]
[400281762,1767257439461,-500.0,0.00013699,2]
[400281763,1767257439473,-500.0,0.00013699,2]
[400281764,1767257439482,-500.0,0.00013699,2]
[400281765,1767257439491,-500.0,0.00013699,2]
[400281766,1767257439501,-500.0,0.00013699,2]
[400281767,1767257439511,-500.0,0.00013699,2]
[400281768,1767257439520,-226.86184291,0.00013699,2]
[400281769,1767257439529,-500.0,0.00013699,2]
[400281770,1767257439538,-158.33594106,0.00013699,2]
[400281771,1767257439550,-500.0,0.00013699,2]
[400281772,1767257439559,-251.00272433,0.00013699,2]
[400281773,1767257439568,-500.0,0.00013699,2]
[400281774,1767257439578,-500.0,0.00013699,2]
[400281775,1767257439588,-500.50269191,0.00013699,2]
[400281776,1767257439598,-502.25099838,0.00013699,2]
[400281777,1767257439607,-501.26577405,0.00013699,2]
[400281778,1767257439617,-500.0867866,0.00013699,2]
[400281779,1767257439626,-501.11645787,0.00013699,2]
[400281780,1767257439635,-500.73491636,0.00013699,2]
[400281781,1767257439644,-500.0,0.00013699,2]
[400281782,1767257439653,-159.77203792,0.00013699,2]
[400281783,1767257439662,-457.22674749,0.00013699,2]
[400281784,1767257439672,-500.0,0.00013699,2]
[400281785,1767257439682,-500.27689491,0.00013699,2]
[400281786,1767257439691,-500.41254196,0.00013699,2]
[400281787,1767257439700,-500.49764939,0.00013699,2]
[400281788,1767257439709,-524.82836698,0.00013699,2]
[400281789,1767257439718,-340.15657069,0.00013699,2]
[400281790,1767257439728,-373.28262423,0.00013699,2]
[400281791,1767257439737,-500.79513169,0.00013699,2]
[400281792,1767257439746,-502.90555737,0.00013699,2]
[400281793,1767257439755,-500.0,0.00013699,2]
[400281794,1767257439765,-500.17833478,0.00013699,2]
[400281795,1767257439774,-500.0,0.00013699,2]
[400281796,1767257439783,-500.0,0.00013699,2]
[400281797,1767257439793,-500.0,0.00013699,2]
[400281798,1767257439803,-500.95516799,0.00013699,2]
[400281799,1767257439812,-500.0,0.00013699,2]
[400281800,1767257439821,-500.0,0.00013699,2]
[400281801,1767257439830,-500.0,0.00013699,2]
[400281802,1767257439839,-501.63702454,0.00013699,2]
[400281803,1767257439848,-500.0,0.00013699,2]
[400281804,1767257439857,-500.40244192,0.00013699,2]
[400281805,1767257439866,-534.87876427,0.00013699,2]
[400281806,1767257439875,-1000.0,0.00013821,2]
[400281807,1767257439884,-987.40538387,0.00013821,2]
[400281808,1767257439893,-1000.0,0.00013821,2]
[400281809,1767257439902,-1000.0,0.00013821,2]
[400281810,1767257439911,-1007.02514153,0.00013821,2]
[400281811,1767257439920,-1000.0,0.00013821,2]
[400281812,1767257439929,-514.35879618,0.00013821,2]
[400281813,1767257439938,-810.3725378,0.00013821,2]
[400281814,1767257439947,-704.62025584,0.00013821,2]
[400281815,1767257439956,-1000.0,0.00013821,2]
[400281816,1767257439966,-1000.0,0.00013821,2]
[400281817,1767257439975,-204.97300329,0.00013821,2]
[400281818,1767257439984,-654.18409107,0.00013821,2]
[400281819,1767257439993,-527.43501459,0.00013821,2]
[400281821,1767257440003,-1000.0,0.00013821,2]
[400281822,1767257440013,-542.24446851,0.00013821,2]
[400281823,1767257440022,-151.0,0.000139,2]
[400281824,1767257440032,-1000.0,0.00014,2]
[400281825,1767257440041,-600.20462745,0.00014157,2]
[400281826,1767257440051,-600.0,0.00014221,2]
[400281827,1767257440060,-1100.08232842,0.00014247,2]
[400281828,1767257440069,-1000.0,0.00014247,2]
[400281829,1767257440078,-1002.44886287,0.00014247,2]
[400281830,1767257440087,-1000.0,0.00014247,2]
[400281831,1767257440096,-1000.0,0.00014247,2]
[400281832,1767257440105,-400.0,0.00014247,2]
[400281833,1767257440115,-1000.0,0.00014247,2]
[400281834,1767257440124,-602.586313,0.00014247,2]
[400281835,1767257440134,-502.60310461,0.00014247,2]
[400281836,1767257440144,-1001.95418441,0.00014247,2]
[400281837,1767257440153,-1000.0,0.00014247,2]
[400281838,1767257440162,-1000.0,0.00014247,2]
[400281839,1767257440171,-1000.0,0.00014247,2]
[400281840,1767257440181,-160.44722878,0.00014247,2]
[400281841,1767257440190,-1001.84835347,0.00014247,2]
[400281842,1767257440198,-198.34157968,0.00014247,2]
[400281843,1767257440208,-500.86510493,0.00014247,2]
[400281844,1767257440216,-500.0,0.00014247,2]
[400281845,1767257440225,-316.4851046,0.00014247,2]
[400281846,1767257440235,-190.30456771,0.00014247,2]
[400281847,1767257440244,-502.4345557,0.00014247,2]
[400281848,1767257440253,-502.48975401,0.00014247,2]
[400281849,1767257440262,-500.0,0.00014247,2]
[400281850,1767257440271,-387.84322362,0.00014368,2]
[400281851,1767257440281,-218.67284669,0.00014368,2]
[400281852,1767257440290,-1500.0,0.00014368,2]
[400281853,1767257440299,-1500.0,0.00014368,2]
[400281854,1767257440309,-1500.0,0.00014368,2]
[400281855,1767257440318,-503.31062496,0.00014368,2]
[400281856,1767257440328,-1500.0,0.00014368,2]
[400281857,1767257440337,-600.0,0.00014768,2]